fUST/lending_fUST_20251218
["ID","MTS","AMOUNT","RATE_DAILY","PERIOD"]
[398961735,1766026238231,-2429.22425889,0.0003887,2]
[398961736,1766026238240,-199.3,0.00038946,2]
[398961737,1766026238249,-199.3,0.00038946,2]
[398961738,1766026238258,-479.16495259,0.00038955,15]
[398961739,1766026238267,-500.0,0.00038955,15]
[398961740,1766026238275,-419.29361129,0.00038955,15]
[398961741,1766026238285,-514.36753701,0.00038955,15]
[398961743,1766026238294,-7361.77808006,0.00038956,4]
[398961745,1766026238305,-1140.62200724,0.00038956,4]
[398961747,1766026238317,-1618.48555285,0.00038956,4]
[398961749,1766026238328,-418.49770858,0.00038956,4]
[398961751,1766026238339,-494.78578771,0.00038956,4]
[398961754,1766026238352,-905.78757059,0.00038956,4]
[398961836,1766026239968,-12783.62690149,0.00038956,4]
[398961837,1766026239982,-6080.2649987,0.00038956,4]
[398961838,1766026240019,-90818.08249911,0.00038956,4]
[398961857,1766026817216,-157.729808,0.00013699,2]
[398961858,1766026817245,-602.5078345,0.00013699,2]
[398961877,1766027431948,-615.0,0.00013699,2]
[398961878,1766027431958,-150.0,0.00016576,2]
[398961879,1766027431967,-286.2016312,0.00018576,2]
[398961880,1766027431977,-149.63288965,0.00025233,16]
[398961881,1766027432003,-82.11557014,0.00025233,16]
[398961882,1766027432012,-157.729808,0.00027397,2]
[398961883,1766027432022,-32.46284078,0.00037384,120]
[398961884,1766027432033,-130.43960537,0.00037384,120]
[398961885,1766027432042,-230.57086685,0.00037479,10]
[398961886,1766027432053,-1769.42913315,0.00037479,10]
[398961887,1766027432062,-301.0,0.00037482,3]
[398961888,1766027432072,-300.0,0.00037482,2]
[398961889,1766027432081,-500.0,0.00037483,15]
[398961890,1766027432091,-500.0,0.00037483,15]
[398961891,1766027432100,-500.0,0.00037483,15]
[398961892,1766027432109,-500.0,0.00037483,15]
[398961893,1766027432120,-387.30312887,0.00037483,15]
[398961894,1766027432133,-590.29990256,0.00037483,15]
[398961895,1766027432143,-500.0,0.00037483,15]
[398961896,1766027432152,-500.0,0.00037483,15]
[398961897,1766027432161,-500.0,0.00037483,15]
[398961898,1766027432172,-500.0,0.00037483,15]
[398961899,1766027432182,-324.74328609,0.00037483,15]
[398961900,1766027432191,-500.0,0.00037483,15]
[398961901,1766027432201,-500.0,0.00037483,15]
[398961902,1766027432211,-170.52089439,0.00037483,15]
[398961921,1766027438007,-329.47910561,0.00037483,15]
[398961922,1766027438017,-228.62059439,0.00037483,15]
[398961924,1766027438064,-271.37940561,0.00037483,15]
[398961926,1766027438074,-500.0,0.00037483,15]
[398961928,1766027438087,-500.0,0.00037483,15]
[398961930,1766027438096,-500.0,0.00037483,15]
[398961931,1766027438106,-500.0,0.00037483,15]
[398961932,1766027438115,-500.0,0.00037483,15]
[398961933,1766027438125,-500.0,0.00037483,15]
[398961934,1766027438134,-500.0,0.00037483,15]
[398961935,1766027438144,-500.0,0.00037483,15]
[398961936,1766027438153,-500.0,0.00037483,15]
[398961937,1766027438163,-500.0,0.00037483,15]
[398961938,1766027438173,-500.0,0.00037483,15]
[398961939,1766027438183,-294.25766526,0.00037483,15]
[398961940,1766027438194,-205.74233474,0.00037483,15]
[398961941,1766027438203,-500.0,0.00037483,15]
[398961942,1766027438213,-500.0,0.00037483,15]
[398961943,1766027438223,-500.0,0.00037483,15]
[398961944,1766027438232,-7.08363726,0.00037483,15]
[398961945,1766027438244,-492.91636274,0.00037483,15]
[398961946,1766027438254,-500.0,0.00037483,15]
[398961947,1766027438264,-340.70086926,0.00037483,15]
[398961948,1766027438276,-159.29913074,0.00037483,15]
[398961949,1766027438286,-131.83111133,0.00037483,15]
[398961950,1766027438299,-368.16888867,0.00037483,15]
[398961951,1766027438308,-500.0,0.00037483,15]
[398961952,1766027438318,-500.0,0.00037483,15]
[398961953,1766027438328,-500.0,0.00037483,15]
[398961954,1766027438337,-500.0,0.00037483,15]
[398961955,1766027438347,-225.64421311,0.00037483,15]
[398961956,1766027438360,-274.35578689,0.00037483,15]
[398961957,1766027438370,-500.0,0.00037483,15]
[398961958,1766027438379,-500.0,0.00037483,15]
[398961959,1766027438389,-500.0,0.00037483,15]
[398961960,1766027438398,-500.0,0.00037483,15]
[398961961,1766027438408,-410.99118843,0.00037483,15]
[398961962,1766027438417,-500.0,0.00037483,15]
[398961963,1766027438426,-500.0,0.00037483,15]
[398961964,1766027438436,-500.0,0.00037483,15]
[398961965,1766027438445,-500.0,0.00037483,15]
[398961966,1766027438455,-500.0,0.00037483,15]
[398961967,1766027438464,-500.0,0.00037483,15]
[398961968,1766027438473,-500.0,0.00037483,15]
[398961969,1766027438483,-600.0,0.00037483,15]
[398961970,1766027438493,-500.0,0.00037483,15]
[398961971,1766027438502,-500.0,0.00037483,15]
[398961972,1766027438511,-500.0,0.00037483,15]
[398961973,1766027438520,-1128.0,0.00037483,3]
[398961974,1766027438529,-3058.51118451,0.00037484,2]
[398961997,1766027440133,-3980.9919708,0.00037484,2]
[398962273,1766027443173,-541.31652508,0.00037484,2]
[398962548,1766027446267,-176.69998917,0.00037482,15]
[398962550,1766027446277,-334.53001083,0.00037482,15]
[398963304,1766028616286,1038.4,0.00012999,2]
[398963328,1766028632120,-150.0,0.00024658,2]
[398963329,1766028632130,-150.0,0.00024726,2]
[398963330,1766028632140,-236.0,0.00025,2]
[398963331,1766028632149,-1123.0,0.00025,5]
[398963332,1766028632159,-578.78139548,0.000252,5]
[398963333,1766028632168,-250.0,0.00025205,2]
[398963334,1766028632177,-250.0,0.00025753,2]
[398963335,1766028632186,-161.0,0.00026,5]
[398963336,1766028632195,-229.38472857,0.00026726,2]
[398963338,1766028632212,-500.0,0.00027397,5]
[398963340,1766028632223,-1000.0,0.00027777,5]
[398963341,1766028632232,-516.0,0.00029999,2]
[398963342,1766028632241,-2000.0,0.0003,15]
[398963343,1766028632250,-300.0,0.00030612,2]
[398963344,1766028632439,-1000.0,0.00030614,30]
[398963345,1766028632448,-162.90244615,0.000332,117]
[398963346,1766028632457,-407.51210823,0.0003524,2]
[398963347,1766028632466,-465.26239556,0.0003524,2]
[398963348,1766028632476,-383.06377724,0.0003549,2]
[398963349,1766028632485,-410.93657972,0.0003567,2]
[398963350,1766028632494,-386.28280058,0.0003567,2]
[398963351,1766028632503,-354.98670926,0.00036993,15]
[398963352,1766028632512,-500.0,0.00036993,15]
[398963353,1766028632520,-500.0,0.00036993,15]
[398963354,1766028632529,-179.44139198,0.00036993,15]
[398963355,1766028632538,-500.0,0.00036993,15]
[398963356,1766028632548,-500.0,0.00036993,15]
[398963357,1766028632556,-403.09065525,0.00036993,15]
[398963358,1766028632565,-500.0,0.00036993,15]
[398963359,1766028632574,-500.02210909,0.00036993,15]
[398963360,1766028632583,-40641.24764513,0.00036994,2]
[398963361,1766028632591,-238.13883326,0.00037095,2]
[398963362,1766028632600,-500.0,0.000374,120]
[398963363,1766028632610,-649.85756812,0.00037432,2]
[398963364,1766028632619,-645.76591282,0.00037482,15]
[398963365,1766028632627,-500.0,0.00037482,7]
[398963366,1766028632636,-500.0,0.00037482,15]
[398963367,1766028632645,-335.41546681,0.00037482,15]
[398963368,1766028632654,-210.05727591,0.00037482,15]
[398963369,1766028632663,-235.25771351,0.00037482,7]
[398963370,1766028632672,-6566.4860718,0.00037483,2]
[398963371,1766028632681,-796.9686853,0.00037483,2]
[398963372,1766028632690,-185.341,0.00037483,48]
[398963373,1766028632699,-23945.0682906,0.00037483,2]
[398963374,1766028632708,-793.27,0.00037485,30]
[398963375,1766028632716,-793.27,0.00037485,30]
[398963376,1766028632727,-2000.0,0.00037488,10]
[398963377,1766028632736,-793.27,0.00037496,30]
[398963378,1766028632745,-2000.0,0.00037497,10]
[398963379,1766028632754,-17367.0,0.000375,120]
[398963380,1766028632765,-793.27,0.00037505,30]
[398963381,1766028632775,-2000.0,0.00037506,10]
[398963382,1766028632786,-210.305343,0.00037506,31]
[398963383,1766028632796,-151.0,0.00037506,31]
[398963384,1766028632806,-151.978133,0.00037506,31]
[398963385,1766028632815,-151.0,0.00037506,31]
[398963386,1766028632824,-151.0,0.00037506,31]
[398963387,1766028632834,-151.0,0.00037506,31]
[398963388,1766028632844,-2000.0,0.00037514,10]
[398963389,1766028632853,-152.133991,0.00037515,31]
[398963390,1766028632863,-737.99581,0.00037515,31]
[398963391,1766028632873,-1716.417415,0.00037515,31]
[398963392,1766028632883,-737.99581,0.00037515,31]
[398963393,1766028632892,-151.0,0.00037515,31]
[398963394,1766028632901,-737.99581,0.00037515,31]
[398963395,1766028632911,-737.99581,0.00037515,31]
[398963396,1766028632920,-151.0,0.00037515,31]
[398963397,1766028632929,-151.0,0.00037515,31]
[398963398,1766028632938,-151.0,0.00037515,31]
[398963399,1766028632948,-151.0,0.00037515,31]
[398963400,1766028632957,-500.0,0.00037515,31]
[398963401,1766028632966,-2000.0,0.00037523,10]
[398963402,1766028632979,-706.978999,0.00037532,31]
[398963403,1766028632989,-706.978999,0.00037532,31]
[398963404,1766028633002,-706.978999,0.00037532,31]
[398963405,1766028633012,-706.978999,0.00037532,31]
[398963406,1766028633021,-151.0,0.00037532,31]
[398963407,1766028633031,-724.414942,0.00037532,31]
[398963408,1766028633040,-724.414942,0.00037532,31]
[398963409,1766028633049,-724.414942,0.00037532,31]
[398963410,1766028633058,-724.414942,0.00037532,31]
[398963411,1766028633068,-151.0,0.00037532,31]
[398963412,1766028633076,-151.0,0.00037532,31]
[398963413,1766028633086,-221.874417,0.00037532,31]
[398963414,1766028633095,-221.874417,0.00037532,31]
[398963415,1766028633104,-221.874417,0.00037532,31]
[398963416,1766028633113,-211.031132,0.00037532,31]
[398963417,1766028633122,-221.874417,0.00037532,31]
[398963418,1766028633132,-211.031132,0.00037532,31]
[398963419,1766028633141,-3022.986041,0.00037532,31]
[398963420,1766028633151,-211.031132,0.00037532,31]
[398963421,1766028633160,-3022.986041,0.00037532,31]
[398963422,1766028633171,-211.031132,0.00037532,31]
[398963423,1766028633180,-3022.986041,0.00037532,31]
[398963424,1766028633189,-3022.986041,0.00037532,31]
[398963425,1766028633198,-2000.0,0.00037532,10]
[398963426,1766028633207,-2000.0,0.00037541,10]
[398963427,1766028633217,-152.317075,0.00037541,31]
[398963428,1766028633228,-151.0,0.00037541,31]
[398963429,1766028633237,-181.88695594,0.00037549,30]
[398963430,1766028633246,-1095.74,0.00037549,30]
[398963431,1766028633255,-2000.0,0.0003755,10]
[398963432,1766028633264,-1802.71619876,0.0003755,10]
[398963433,1766028633273,-649.85756808,0.00037807,2]
[398963434,1766028633283,-899.81794945,0.00037876,2]
[398963435,1766028633292,-1086.0825157,0.00038061,2]
[398963436,1766028633302,-151.0,0.00038061,31]
[398963437,1766028633311,-649.85756808,0.00038182,2]
[398963438,1766028633320,-162.25660467,0.00038496,14]
[398963439,1766028633330,-649.85756808,0.00038557,2]
[398963440,1766028633339,-793.27,0.00038889,120]
[398963441,1766028633348,-9561.905068,0.0003889,120]
[398963442,1766028633357,-151.0,0.0003889,120]
[398963443,1766028633366,-151.0,0.0003889,120]
[398963444,1766028633376,-151.0,0.0003889,120]
[398963445,1766028633385,-151.0,0.0003889,120]
[398963446,1766028633394,-151.0,0.0003889,120]
[398963447,1766028633404,-151.0,0.0003889,120]
[398963448,1766028633414,-151.0,0.0003889,120]
[398963449,1766028633425,-737.99581,0.0003889,120]
[398963450,1766028633433,-1716.417415,0.0003889,120]
[398963451,1766028633443,-737.99581,0.0003889,120]
[398963452,1766028633453,-151.0,0.0003889,120]
[398963453,1766028633462,-737.99581,0.0003889,120]
[398963454,1766028633473,-737.99581,0.0003889,120]
[398963455,1766028633484,-151.0,0.0003889,120]
[398963456,1766028633496,-151.0,0.0003889,120]
[398963457,1766028633507,-151.0,0.0003889,120]
[398963458,1766028633517,-216.629274,0.0003889,120]
[398963459,1766028633527,-151.0,0.0003889,120]
[398963460,1766028633538,-151.0,0.0003889,120]
[398963461,1766028633548,-151.0,0.0003889,120]
[398963462,1766028633558,-151.0,0.0003889,120]
[398963463,1766028633569,-151.0,0.0003889,120]
[398963464,1766028633586,-151.0,0.0003889,120]
[398963465,1766028633597,-151.0,0.0003889,120]
[398963466,1766028633607,-209.547044,0.0003889,120]
[398963467,1766028633617,-706.978999,0.0003889,120]
[398963468,1766028633627,-706.978999,0.0003889,120]
[398963469,1766028633637,-706.978999,0.0003889,120]
[398963470,1766028633646,-706.978999,0.0003889,120]
[398963471,1766028633656,-151.0,0.0003889,120]
[398963472,1766028633666,-724.414942,0.0003889,120]
[398963473,1766028633675,-724.414942,0.0003889,120]
[398963474,1766028633689,-724.414942,0.0003889,120]
[398963475,1766028633698,-724.414942,0.0003889,120]
[398963476,1766028633707,-151.0,0.0003889,120]
[398963477,1766028633716,-151.0,0.0003889,120]
[398963478,1766028633731,-221.874417,0.0003889,120]
[398963479,1766028633740,-221.874417,0.0003889,120]
[398963480,1766028633750,-221.874417,0.0003889,120]
[398963481,1766028633759,-211.031132,0.0003889,120]
[398963482,1766028633768,-221.874417,0.0003889,120]
[398963483,1766028633777,-211.031132,0.0003889,120]
[398963484,1766028633787,-3022.986041,0.0003889,120]
[398963485,1766028633796,-211.031132,0.0003889,120]
[398963486,1766028633805,-3022.986041,0.0003889,120]
[398963487,1766028633814,-211.031132,0.0003889,120]
[398963488,1766028633824,-3022.986041,0.0003889,120]
[398963489,1766028633833,-3022.986041,0.0003889,120]
[398963490,1766028633843,-151.0,0.0003889,120]
[398963491,1766028633852,-151.0,0.000389,20]
[398963492,1766028633862,-74763.96377033,0.00038932,4]
[398963493,1766028633875,-2205.99177095,0.00038932,4]
[398963494,1766028633887,-330.25242726,0.00038932,4]
[398963495,1766028633899,-5269.30010608,0.00038932,4]
[398963496,1766028633910,-81324.78753441,0.00038932,4]
[398963497,1766028633921,-4453.82844305,0.00038932,4]
[398963498,1766028633933,-307.85003612,0.00038932,4]
[398963504,1766028638206,-151.0,0.00037506,31]
[398963505,1766028638216,-1287.313061,0.00037506,31]
[398963506,1766028638227,-1287.313061,0.00037506,31]
[398963507,1766028638236,-151.0,0.00037541,31]
[398963508,1766028638246,-151.0,0.00037541,31]
[398963509,1766028638256,-1287.313061,0.00037541,31]
[398963510,1766028638265,-1287.313061,0.00037541,31]
[398963511,1766028638275,-151.0,0.0003889,120]
[398963512,1766028638285,-151.0,0.0003889,120]
[398963513,1766028638296,-1287.313061,0.0003889,120]
[398963514,1766028638306,-1287.313061,0.0003889,120]
[398963515,1766028638316,-292707.51035287,0.00038932,4]
[398963516,1766028638325,-649.85756808,0.00038932,2]
[398963517,1766028638335,-151.0,0.00038932,120]
[398963518,1766028638344,-151.0,0.00038932,120]
[398963519,1766028638354,-162.838381,0.00038932,120]
[398963520,1766028638365,-1287.313061,0.00038932,120]
[398963521,1766028638375,-1287.313061,0.00038932,120]
[398963522,1766028638384,-1095.74,0.00038958,120]
[398963523,1766028638393,-151.0,0.00038959,120]
[398963524,1766028638403,-278.484762,0.00039024,120]
[398963525,1766028638413,-278.484762,0.00039024,120]
[398963526,1766028638423,-278.484762,0.00039024,120]
[398963527,1766028638433,-278.484762,0.00039024,120]
[398963528,1766028638442,-151.0,0.00039024,120]
[398963529,1766028638452,-151.0,0.00039024,120]
[398963530,1766028638461,-151.0,0.00039024,120]
[398963531,1766028638471,-151.0,0.00039024,120]
[398963532,1766028638481,-228.235,0.00039024,120]
[398963533,1766028638491,-151.0,0.00039024,120]
[398963534,1766028638500,-737.99581,0.00039032,120]
[398963535,1766028638510,-737.99581,0.00039032,120]
[398963536,1766028638520,-737.99581,0.00039032,120]
[398963537,1766028638530,-737.99581,0.00039032,120]
[398963538,1766028638539,-151.0,0.00039032,120]
[398963539,1766028638549,-151.0,0.00039032,120]
[398963540,1766028638559,-151.0,0.00039032,120]
[398963541,1766028638568,-151.0,0.00039032,120]
[398963542,1766028638578,-151.0,0.00039032,120]
[398963543,1766028638588,-151.0,0.00039032,120]
[398963544,1766028638597,-200.608185,0.00039032,120]
[398963545,1766028638607,-151.0,0.00039032,120]
[398963546,1766028638617,-151.0,0.00039032,120]
[398963547,1766028638626,-151.0,0.00039032,120]
[398963548,1766028638636,-706.978999,0.00039032,120]
[398963549,1766028638645,-706.978999,0.00039032,120]
[398963550,1766028638655,-706.978999,0.00039032,120]
[398963551,1766028638664,-706.978999,0.00039032,120]
[398963552,1766028638674,-151.0,0.00039032,120]
[398963553,1766028638683,-724.414942,0.00039032,120]
[398963554,1766028638692,-724.414942,0.00039032,120]
[398963555,1766028638701,-724.414942,0.00039032,120]
[398963556,1766028638710,-724.414942,0.00039032,120]
[398963557,1766028638719,-151.0,0.00039032,120]
[398963558,1766028638729,-260.33084973,0.00039032,120]
[398963559,1766028638739,-221.874417,0.00039032,120]
[398963560,1766028638749,-221.874417,0.00039032,120]
[398963561,1766028638758,-221.874417,0.00039032,120]
[398963562,1766028638768,-211.031132,0.00039032,120]
[398963563,1766028638777,-221.874417,0.00039032,120]
[398963564,1766028638786,-211.031132,0.00039032,120]
[398963565,1766028638795,-3022.986041,0.00039032,120]
[398963566,1766028638804,-211.031132,0.00039032,120]
[398963567,1766028638813,-3022.986041,0.00039032,120]
[398963568,1766028638823,-211.031132,0.00039032,120]
[398963569,1766028638832,-3022.986041,0.00039032,120]
[398963570,1766028638841,-3022.986041,0.00039032,120]
[398963571,1766028638851,-181.3472132,0.00039047,2]
[398963572,1766028638860,-793.27,0.00039055,120]
[398963573,1766028638870,-793.27,0.00039055,120]
[398963574,1766028638879,-793.27,0.00039055,120]
[398963575,1766028638889,-793.27,0.00039055,120]
[398963576,1766028638899,-793.27,0.00039055,120]
[398963577,1766028638908,-793.27,0.00039055,120]
[398963578,1766028638917,-793.27,0.00039055,120]
[398963579,1766028638927,-793.27,0.00039055,120]
[398963580,1766028638935,-793.27,0.00039055,120]
[398963581,1766028638945,-1095.74,0.00039055,120]
[398963582,1766028638954,-1095.74,0.00039055,120]
[398963583,1766028638963,-1095.74,0.00039055,120]
[398963584,1766028638974,-151.0,0.00039055,120]
[398963585,1766028638983,-151.0,0.00039055,120]
[398963586,1766028638993,-1287.313061,0.00039055,120]
[398963587,1766028639002,-1287.313061,0.00039055,120]
[398963588,1766028639012,-151.0,0.00039056,30]
[398963589,1766028639022,-151.0,0.00039056,30]
[398963590,1766028639031,-151.0,0.00039056,30]
[398963591,1766028639040,-151.0,0.00039056,30]
[398963592,1766028639049,-275.301954,0.00039056,30]
[398963593,1766028639058,-151.08267903,0.00039056,30]
[398963594,1766028639067,-151.0,0.00039056,120]
[398963595,1766028639077,-151.0,0.00039056,120]
[398963596,1766028639086,-151.0,0.00039056,120]
[398963597,1766028639095,-151.0,0.00039056,120]
[398963598,1766028639105,-151.0,0.00039056,120]
[398963599,1766028639114,-151.0,0.00039056,120]
[398963600,1766028639123,-151.0,0.00039056,120]
[398963601,1766028639132,-151.0,0.00039056,120]
[398963602,1766028639142,-151.0,0.00039056,120]
[398963603,1766028639151,-151.0,0.00039056,120]
[398963604,1766028639160,-151.0,0.00039056,120]
[398963605,1766028639169,-151.0,0.00039056,120]
[398963606,1766028639178,-151.0,0.00039056,120]
[398963607,1766028639187,-151.0,0.00039056,120]
[398963608,1766028639197,-151.0,0.00039056,120]
[398963609,1766028639206,-175.887971,0.00039056,120]
[398963610,1766028639215,-151.0,0.00039056,120]
[398963611,1766028639225,-151.0,0.00039056,120]
[398963612,1766028639234,-283.112793,0.00039056,120]
[398963613,1766028639243,-238.185161,0.00039056,120]
[398963614,1766028639252,-151.0,0.00039056,120]
[398963615,1766028639262,-151.0,0.00039056,120]
[398963616,1766028639271,-166.1714,0.00039056,120]
[398963617,1766028639280,-151.0,0.00039056,120]
[398963618,1766028639289,-151.0,0.00039056,120]
[398963619,1766028639298,-151.0,0.00039056,120]
[398963620,1766028639307,-151.0,0.00039056,120]
[398963621,1766028639317,-151.0,0.00039056,120]
[398963622,1766028639326,-151.0,0.00039056,120]
[398963623,1766028639336,-196.850634,0.00039056,120]
[398963624,1766028639345,-151.0,0.00039056,120]
[398963625,1766028639354,-151.0,0.00039056,120]
[398963626,1766028639363,-151.0,0.00039056,120]
[398963627,1766028639374,-151.0,0.00039056,120]
[398963628,1766028639383,-151.0,0.00039056,120]
[398963629,1766028639392,-151.0,0.00039056,120]
[398963630,1766028639402,-151.0,0.00039056,120]
[398963631,1766028639412,-151.0,0.00039056,120]
[398963632,1766028639426,-151.0,0.00039056,120]
[398963633,1766028639436,-151.0,0.00039056,120]
[398963634,1766028639445,-151.0,0.00039056,120]
[398963635,1766028639566,-151.0,0.00039056,120]
[398963636,1766028639576,-151.0,0.00039056,120]
[398963637,1766028639585,-151.0,0.00039056,120]
[398963638,1766028639594,-151.0,0.00039056,120]
[398963639,1766028639603,-198.386026,0.00039056,120]
[398963640,1766028639612,-151.0,0.00039056,120]
[398963641,1766028639621,-151.0,0.00039056,120]
[398963642,1766028639630,-151.0,0.00039056,120]
[398963643,1766028639641,-295.28910862,0.00039056,120]
[398963644,1766028639651,-278.484762,0.00039056,120]
[398963645,1766028639668,-278.484762,0.00039056,120]
[398963646,1766028639682,-278.484762,0.00039056,120]
[398963647,1766028639692,-278.484762,0.00039056,120]
[398963648,1766028639701,-278.484762,0.00039056,120]
[398963649,1766028639711,-278.484762,0.00039056,120]
[398963650,1766028639720,-278.484762,0.00039056,120]
[398963651,1766028639731,-278.484762,0.00039056,120]
[398963652,1766028639740,-278.484762,0.00039056,120]
[398963653,1766028639751,-278.484762,0.00039056,120]
[398963654,1766028639762,-278.484762,0.00039056,120]
[398963656,1766028639772,-278.484762,0.00039056,120]
[398963657,1766028639783,-278.484762,0.00039056,120]
[398963658,1766028639792,-278.484762,0.00039056,120]
[398963659,1766028639802,-278.484762,0.00039056,120]
[398963660,1766028639811,-278.484756,0.00039056,120]
[398963661,1766028639820,-151.0,0.00039056,120]
[398963663,1766028639831,-151.0,0.00039056,120]
[398963664,1766028639840,-151.0,0.00039056,120]
[398963665,1766028639850,-151.0,0.00039056,120]
[398963666,1766028639859,-151.0,0.00039056,120]
[398963667,1766028639868,-151.0,0.00039056,120]
[398963668,1766028639878,-151.0,0.00039056,120]
[398963669,1766028639887,-151.0,0.00039056,120]
[398963671,1766028639896,-151.0,0.00039056,120]
[398963673,1766028639905,-151.0,0.00039056,120]
[398963674,1766028639915,-151.0,0.00039056,120]
[398963676,1766028639924,-151.0,0.00039056,120]
[398963677,1766028639934,-151.0,0.00039056,120]
[398963679,1766028639943,-151.0,0.00039056,120]
[398963680,1766028639952,-158.168527,0.00039056,120]
[398963681,1766028639962,-229.844977,0.00039056,120]
[398963682,1766028639971,-151.0,0.00039056,120]
[398963683,1766028639980,-151.0,0.00039056,120]
[398963684,1766028639989,-151.0,0.00039056,120]
[398963685,1766028639998,-151.638607,0.00039056,120]
[398963686,1766028640008,-151.0,0.00039056,120]
[398963687,1766028640017,-151.0,0.00039056,120]
[398963688,1766028640027,-151.0,0.00039056,120]
[398963689,1766028640036,-151.0,0.00039056,120]
[398963690,1766028640045,-151.0,0.00039056,120]
[398963691,1766028640055,-151.0,0.00039056,120]
[398963692,1766028640064,-151.0,0.00039056,120]
[398963693,1766028640074,-151.0,0.00039056,120]
[398963694,1766028640083,-151.0,0.00039056,120]
[398963695,1766028640092,-243.701408,0.00039056,120]
[398963696,1766028640101,-151.0,0.00039056,120]
[398963697,1766028640110,-155.07957,0.00039056,120]
[398963698,1766028640119,-151.0,0.00039056,120]
[398963699,1766028640128,-151.0,0.00039056,120]
[398963700,1766028640138,-737.99581,0.00039056,120]
[398963701,1766028640147,-737.99581,0.00039056,120]
[398963702,1766028640156,-737.99581,0.00039056,120]
[398963703,1766028640165,-737.99581,0.00039056,120]
[398963704,1766028640175,-239.000081,0.00039056,120]
[398963705,1766028640184,-737.99581,0.00039056,120]
[398963706,1766028640193,-737.99581,0.00039056,120]
[398963707,1766028640202,-737.99581,0.00039056,120]
[398963709,1766028640212,-737.995812,0.00039056,120]
[398963711,1766028640221,-151.0,0.00039056,120]
[398963713,1766028640231,-151.0,0.00039056,120]
[398963714,1766028640241,-151.0,0.00039056,120]
[398963715,1766028640250,-151.0,0.00039056,120]
[398963716,1766028640260,-151.0,0.00039056,120]
[398963717,1766028640269,-151.0,0.00039056,120]
[398963718,1766028640278,-151.0,0.00039056,120]
[398963719,1766028640287,-151.0,0.00039056,120]
[398963720,1766028640296,-151.0,0.00039056,120]
[398963721,1766028640305,-151.0,0.00039056,120]
[398963722,1766028640314,-151.0,0.00039056,120]
[398963723,1766028640325,-151.0,0.00039056,120]
[398963724,1766028640334,-151.0,0.00039056,120]
[398963725,1766028640343,-151.0,0.00039056,120]
[398963726,1766028640352,-151.0,0.00039056,120]
[398963727,1766028640360,-1095.74,0.00039056,120]
[398963728,1766028640369,-1095.74,0.00039056,120]
[398963729,1766028640378,-1095.74,0.00039056,120]
[398963730,1766028640388,-1095.74,0.00039056,120]
[398963731,1766028640396,-1095.74,0.00039056,120]
[398963732,1766028640406,-1095.74,0.00039056,120]
[398963733,1766028640417,-1095.74,0.00039056,120]
[398963734,1766028640428,-1095.74,0.00039056,120]
[398963735,1766028640438,-1095.74,0.00039056,120]
[398963736,1766028640448,-1095.74,0.00039056,120]
[398963737,1766028640457,-1095.74,0.00039056,120]
[398963738,1766028640466,-1095.74,0.00039056,120]
[398963739,1766028640476,-1095.74,0.00039056,120]
[398963741,1766028640486,-1095.74,0.00039056,120]
[398963743,1766028640496,-1095.74,0.00039056,120]
[398963744,1766028640505,-1095.74,0.00039056,120]
[398963745,1766028640515,-1095.74,0.00039056,120]
[398963746,1766028640524,-1095.74,0.00039056,120]